bitfinex/quotes_ETHUSD_20241108
["timestamp","ask_amount","ask_price","bid_price","bid_amount"]
[1731098062936,0.01,2938.2,2937.8,3.24564464]
[1731098062937,0.31737494,2938.0,2937.8,3.24564464]
[1731098063258,0.7847,2938.4,2937.8,3.24564464]
[1731098063434,0.82502785,2938.3,2938.1,3.24564464]
[1731098063633,0.3173184,2938.2,2938.1,3.24564464]
[1731098063882,0.3173184,2938.2,2938.1,3.5702091]
[1731098064176,0.3173184,2938.2,2938.1,4.1202091]
[1731098064483,0.3173184,2938.2,2938.1,3.79564464]
[1731098064774,0.83494951,2938.2,2937.9,0.55]
[1731098064940,0.3173184,2938.1,2937.9,0.61806775]
[1731098065142,0.01,2938.2,2938.1,0.55]
[1731098065347,0.3272178,2938.2,2938.1,0.55]
[1731098066043,0.83475313,2938.2,2938.1,0.55]
[1731098066344,0.01,2938.1,2937.7,3.24564464]
[1731098066652,0.01,2937.8,2937.5,0.36599]
[1731098066869,0.01,2937.8,2937.4,3.31372293]
[1731098067188,0.01,2937.8,2937.4,3.44566514]
[1731098067343,0.01,2937.8,2937.5,0.34456651]
[1731098067649,0.01,2937.8,2937.6,0.55]
[1731098071279,0.01,2937.8,2937.7,3.24564464]
[1731098071586,0.01,2937.8,2937.7,3.79564464]
[1731098074983,0.01,2937.8,2937.7,0.55]
[1731098075191,0.01,2937.8,2937.5,0.55]
[1731098075370,0.01,2937.6,2937.3,0.55]
[1731098075595,0.01,2937.6,2937.4,3.24564464]
[1731098076014,0.01,2937.6,2937.5,0.55]
[1731098079140,0.01,2938.1,2937.5,4.27798317]
[1731098079334,0.01,2938.1,2937.8,3.24564464]
[1731098079514,0.01,2938.1,2937.9,0.55]
[1731098086928,0.01,2938.1,2937.7,0.55]
[1731098092016,0.01,2937.6,2937.3,3.0]
[1731098093249,0.01,2937.6,2937.2,3.24564464]
[1731098093460,0.01,2937.0,2936.6,0.6599]
[1731098093905,0.01,2937.3,2936.7,3.31374102]
[1731098094124,0.01,2937.3,2937.0,3.24564464]
[1731098094410,0.31715723,2937.2,2937.0,3.24564464]
[1731098094611,0.01,2937.3,2937.1,0.32456446]
[1731098094936,0.01,2937.3,2937.2,0.55]
[1731098095109,0.32714914,2937.3,2937.2,0.55]
[1731098095526,0.32714914,2937.3,2937.1,0.55]
[1731098095727,0.01,2937.1,2936.9,0.55]
[1731098096465,0.01,2937.1,2936.9,1.22956446]
[1731098097957,0.01,2937.1,2936.9,1.22956446]
[1731098098770,0.50774123,2937.4,2937.1,0.55]
[1731098098938,0.01,2937.5,2937.4,0.55]
[1731098099145,0.32730751,2937.5,2937.4,0.55]
[1731098099367,0.32730226,2937.5,2937.4,0.55]
[1731098100262,0.01,2937.5,2937.4,0.55]
[1731098100428,0.31730104,2937.5,2937.4,0.55]
[1731098100770,0.32730104,2937.5,2937.4,0.98456446]
[1731098101061,0.32730104,2937.5,2937.4,0.55]
[1731098101624,0.01,2937.3,2937.2,0.55]
[1731098101821,0.32730104,2937.3,2937.2,0.55]
[1731098102025,0.01,2937.0,2936.7,3.90554464]
[1731098102332,0.01,2937.4,2936.8,0.39055446]
[1731098102526,0.01,2937.4,2937.0,3.24564464]
[1731098102726,0.31731162,2937.3,2937.0,3.24564464]
[1731098103028,0.32731162,2937.2,2936.8,0.39055446]
[1731098103340,0.01,2937.0,2936.7,0.13348515]
[1731098103541,0.01,2937.0,2936.5,3.0]
[1731098103542,0.01,2936.8,2936.4,3.24564464]
[1731098103862,0.01,2936.8,2936.1,0.6599]
[1731098103863,0.01,2936.6,2936.1,3.24564464]
[1731098104175,0.31747121,2936.5,2936.1,3.76485523]
[1731098104372,0.01,2936.4,2936.1,0.12865613]
[1731098104660,1.10646419,2936.3,2935.8,3.24564464]
[1731098104860,0.31738686,2936.2,2935.8,3.24564464]
[1731098105025,0.7891,2936.3,2935.8,3.24564464]
[1731098105222,0.31738334,2936.2,2935.8,3.24564464]
[1731098105425,0.7891,2936.3,2935.9,0.32456446]
[1731098105648,0.01,2936.2,2935.9,3.32456446]
[1731098106022,0.01,2936.0,2935.9,3.32456446]
[1731098106432,0.01,2936.0,2935.8,3.37720649]
[1731098106656,0.01,2935.8,2935.2,3.90554464]
[1731098106846,0.01,2936.0,2935.5,3.24564464]
[1731098107045,0.50751801,2936.2,2935.9,3.24564464]
[1731098107262,0.31722292,2936.1,2935.9,3.24564464]
[1731098107437,0.01,2936.7,2936.0,3.70431314]
[1731098107769,0.01,2936.7,2936.6,0.55]
[1731098108270,0.8176,2936.9,2936.6,0.55]
[1731098108562,0.31699497,2936.8,2936.6,0.55]
[1731098108764,0.01,2936.7,2936.6,0.55]
[1731098108971,0.01,2936.7,2936.6,0.92956446]
[1731098109263,0.01,2936.9,2936.6,0.92956446]
[1731098109424,0.01,2936.7,2936.6,0.55]
[1731098109626,0.01,2936.8,2936.6,0.55]
[1731098110237,0.01,2936.8,2936.4,0.55]
[1731098110479,12.46537565,2937.4,2936.2,3.24564464]
[1731098110480,0.01,2936.4,2936.2,3.24564464]
[1731098111081,0.01,2936.1,2936.0,0.39055446]
[1731098111253,0.8327,2936.1,2935.6,3.24564464]
[1731098111591,0.01,2935.9,2935.6,3.24564464]
[1731098112392,0.8227,2936.1,2935.6,3.24564464]
[1731098113283,0.01,2936.2,2935.7,0.55]
[1731098115796,0.01,2936.4,2936.0,0.55]
[1731098116013,12.11188022,2936.7,2936.3,3.24564464]
[1731098116300,0.01,2937.0,2936.7,0.55]
[1731098116600,0.01,2937.0,2936.7,0.61809777]
[1731098116780,1.12119543,2937.4,2937.0,0.55]
[1731098117107,0.01,2937.6,2937.4,0.55]
[1731098118783,1.13312773,2937.5,2937.4,0.55]
[1731098119125,1.13312773,2937.5,2935.4,7.36]
[1731098119126,0.01,2936.5,2936.1,3.24564464]
[1731098119418,0.01,2936.1,2935.8,3.24564464]
[1731098119971,0.01,2935.9,2935.5,3.24564464]
[1731098120190,0.01,2935.9,2935.5,3.6361991]
[1731098120597,0.01,2935.7,2935.5,3.24564464]
[1731098123513,0.01,2935.7,2935.6,0.55]
[1731098123811,0.01,2936.1,2935.6,0.55]
[1731098123970,0.01,2936.1,2935.9,0.55]
[1731098125286,0.01,2935.8,2935.7,0.55]
[1731098131913,0.8335,2935.8,2935.7,0.55]
[1731098139233,0.8335,2935.8,2935.3,3.24564464]
[1731098139561,0.01,2935.4,2935.3,3.79564464]
[1731098140265,0.01,2935.5,2935.4,0.55]
[1731098140425,0.01,2935.6,2935.4,0.55]
[1731098140764,0.8235,2935.8,2935.4,0.55]
[1731098140963,0.01,2935.6,2935.4,0.55]
[1731098146743,12.46525234,2936.0,2934.9,3.24564464]
[1731098146744,0.01,2935.1,2934.9,3.24564464]
[1731098147241,0.01,2934.9,2934.6,3.24564464]
[1731098147486,0.01,2934.9,2934.5,0.6599]
[1731098147644,12.11188022,2935.8,2934.3,3.24564464]
[1731098147645,0.01,2934.6,2934.3,3.24564464]
[1731098148261,0.01,2934.6,2934.3,3.6361991]
[1731098148969,0.01,2934.8,2934.4,0.06815033]
[1731098149144,0.01,2934.8,2934.7,3.79564464]
[1731098149339,0.01,2935.0,2934.8,0.55]
[1731098149640,0.01,2934.8,2934.6,0.55]
[1731098149876,0.8112,2934.8,2934.5,0.55]
[1731098150391,0.01,2934.8,2934.5,0.55]
[1731098151245,0.01,2935.2,2934.8,1.2099]
[1731098151446,0.01,2935.2,2935.1,0.55]
[1731098154677,0.01,2935.0,2934.8,0.55]
[1731098160212,0.8248,2934.9,2934.7,2.79564464]
[1731098160412,0.01,2934.6,2934.5,3.0]
[1731098161353,0.01,2935.0,2934.5,3.69055446]
[1731098161650,0.01,2935.0,2934.7,3.24564464]
[1731098161950,0.01,2935.0,2934.8,0.55]
[1731098163712,0.01,2934.5,2934.4,6.24564464]
[1731098163947,0.01,2934.5,2934.4,3.24564464]
[1731098164111,0.01,2934.8,2934.4,3.24564464]
[1731098164313,0.31772771,2934.7,2934.4,3.24564464]
[1731098164527,0.31773089,2934.6,2934.4,3.24564464]
[1731098164851,0.01,2934.8,2934.4,3.24564464]
[1731098165058,12.11188022,2935.3,2934.4,3.24564464]
[1731098165059,0.31773167,2934.7,2934.6,0.6599]
[1731098165258,0.01,2935.0,2934.7,0.55]
[1731098165435,0.50842562,2935.2,2935.1,0.6599]
[1731098165641,0.01,2935.5,2935.2,0.55]
[1731098165840,0.31771666,2935.4,2935.2,0.61812971]
[1731098166011,0.01,2935.5,2935.2,0.61812971]
[1731098166211,0.3177126,2935.4,2935.2,0.61812971]
[1731098166448,0.01,2935.7,2935.4,0.55]
[1731098166654,0.31774776,2935.6,2935.4,0.92956446]
[1731098166852,0.31774776,2935.5,2935.4,0.55]
[1731098167106,0.31774776,2935.5,2935.4,3.79564464]
[1731098167392,0.01,2935.7,2935.5,0.55]
[1731098167589,0.3177495,2935.6,2935.5,0.55]
[1731098168689,0.35325315,2935.9,2935.5,4.27802459]
[1731098168690,0.01,2935.9,2935.5,4.27802459]
[1731098168841,0.01,2935.9,2935.8,3.79564464]
[1731098169046,0.32773416,2935.9,2935.8,3.79564464]
[1731098169283,0.83608448,2935.9,2935.8,3.79564464]
[1731098169457,0.32773416,2935.9,2935.8,3.79564464]
[1731098169780,0.01,2935.7,2935.6,0.55]
[1731098169966,0.83610054,2935.7,2935.6,0.55]
[1731098173779,0.7653,2935.3,2934.7,0.6599]
[1731098173981,0.01,2934.9,2934.7,3.24564464]
[1731098174142,0.31773416,2934.8,2934.7,3.24564464]
[1731098174345,0.82641455,2934.8,2934.7,3.24564464]
[1731098174745,0.01,2934.4,2934.1,3.24564464]
[1731098174955,0.01,2934.2,2933.8,3.24564464]
[1731098175763,0.31788472,2934.1,2933.8,3.24564464]
[1731098175948,0.01,2934.2,2933.8,3.24564464]
[1731098176147,0.31788589,2934.1,2933.9,3.0]
[1731098176364,0.01,2934.2,2933.9,3.0]
[1731098176587,0.31778424,2934.1,2933.9,3.0]
[1731098176800,0.01,2934.2,2933.9,3.0]
[1731098177078,0.31778639,2934.1,2933.9,3.0]
[1731098177292,0.01,2934.2,2933.9,3.0]
[1731098177446,0.31769394,2934.1,2934.0,0.55]
[1731098178188,0.31769394,2934.1,2933.4,3.24564464]
[1731098178189,0.01,2933.6,2933.4,3.24564464]
[1731098178815,0.01,2933.1,2932.9,0.13225495]
[1731098179467,0.8042,2933.1,2932.6,3.24564464]
[1731098181160,0.01,2933.1,2933.0,13.41354364]
[1731098181757,0.01,2933.1,2933.0,13.96354364]
[1731098182158,12.46471225,2933.4,2933.1,0.55]
[1731098182409,0.01,2933.2,2933.1,0.55]
[1731098182567,0.01,2933.9,2933.1,2.01453575]
[1731098182568,0.01,2933.6,2933.1,2.01453575]
[1731098182755,0.7869,2933.9,2933.1,2.01453575]
[1731098182756,0.01,2933.3,2933.1,2.01453575]
[1731098182957,0.7869,2933.9,2933.6,3.24564464]
[1731098182958,0.36314569,2933.9,2933.6,3.24564464]
[1731098183190,0.36314569,2933.9,2933.7,0.55]
[1731098183191,0.01,2933.9,2933.7,0.55]
[1731098184079,0.36287707,2934.2,2933.7,0.618166]
[1731098184283,0.01,2934.4,2934.1,3.79564464]
[1731098184505,0.01,2934.4,2934.3,3.79564464]
[1731098185299,0.01,2934.4,2934.3,0.55]
[1731098185610,0.01,2933.8,2933.7,3.24564464]
[1731098185799,0.01,2933.8,2933.7,3.79564464]
[1731098186311,0.01,2934.0,2933.8,0.55]
[1731098189897,0.01,2934.3,2933.9,0.61816116]
[1731098190112,12.12188022,2934.5,2934.2,3.24564464]
[1731098190408,0.35309378,2934.7,2934.4,0.6599]
[1731098190606,0.01,2934.9,2934.5,3.8637909]
[1731098190812,0.01,2935.2,2934.9,0.55]
[1731098190964,0.01,2935.2,2935.1,3.24564464]
[1731098191167,0.01,2935.2,2935.1,0.55]
[1731098191479,0.01,2935.2,2934.9,0.55]
[1731098192305,0.01,2934.6,2934.5,3.24564464]
[1731098192487,0.01,2934.6,2934.5,3.79564464]
[1731098193498,0.01,2934.6,2934.5,3.24564464]
[1731098194802,0.01,2934.6,2934.5,3.79564464]
[1731098195175,0.01,2935.0,2934.6,1.2099]
[1731098195381,0.01,2935.0,2934.9,3.79564464]
[1731098195576,0.01,2935.3,2935.0,0.55]
[1731098195783,0.01,2935.3,2935.2,3.79564464]
[1731098196107,0.01,2935.0,2934.9,3.24564464]
[1731098196323,0.01,2935.0,2934.9,3.79564464]
[1731098197635,0.01,2935.0,2934.9,4.55471955]
[1731098198401,0.01,2935.0,2934.5,4.55471955]
[1731098199101,0.8289,2935.4,2934.5,4.55471955]
[1731098199102,0.01,2934.8,2934.5,4.55471955]
[1731098199301,0.01,2935.0,2934.6,0.06814831]
[1731098199510,0.01,2935.0,2934.9,4.55471955]
[1731098199717,0.01,2935.4,2935.0,3.55]
[1731098199872,0.01,2935.1,2935.0,3.55]
[1731098200273,0.01,2935.1,2935.0,4.30547196]
[1731098200910,0.01,2935.4,2935.0,4.30547196]
[1731098201114,0.01,2935.1,2935.0,4.30547196]
[1731098201329,0.01,2935.4,2935.0,4.30547196]
[1731098201974,1.15070284,2935.7,2935.0,4.30547196]
[1731098202171,0.01,2935.4,2935.0,4.30547196]
[1731098202405,0.01,2935.1,2935.0,4.30547196]
[1731098202572,1.15070284,2935.7,2935.0,4.30547196]
[1731098202573,0.01,2935.4,2935.0,4.30547196]
[1731098202787,0.01,2935.6,2935.4,0.55]
[1731098203190,0.01,2935.8,2935.4,0.55]
[1731098203495,0.01,2935.8,2935.3,4.66461955]
[1731098203496,0.01,2935.8,2935.7,4.55471955]
[1731098203875,0.01,2935.0,2934.6,0.6599]
[1731098204184,0.01,2935.4,2935.0,4.00471955]
[1731098204384,0.01,2935.6,2935.1,0.06813686]
[1731098204590,0.01,2935.8,2935.5,4.00471955]
[1731098204796,0.01,2935.6,2935.5,4.00471955]
[1731098205296,0.8283,2936.1,2935.5,4.00471955]
[1731098205297,0.01,2935.8,2935.6,0.55]
[1731098206234,0.01,2935.8,2935.6,0.61812053]
[1731098207218,0.01,2935.8,2935.6,1.08040454]
[1731098208452,0.01,2936.0,2935.6,1.01228401]
[1731098208624,0.01,2936.0,2935.9,4.55471955]
[1731098208934,0.35303943,2936.2,2936.0,0.55]
[1731098209096,0.06108832,2936.5,2936.0,3.55]
[1731098209434,0.01,2936.8,2936.5,0.55]
[1731098209739,0.01,2936.6,2936.5,0.55]
[1731098210102,0.01,2936.9,2936.5,0.55]
[1731098210443,0.36309233,2937.0,2936.8,4.00471955]
[1731098210584,0.36309233,2937.0,2936.5,0.06810303]
[1731098210585,0.01,2936.6,2936.5,0.55]
[1731098213087,0.01,2936.1,2936.0,4.00471955]
[1731098213288,0.8311,2936.6,2935.6,4.00471955]
[1731098213289,0.01,2935.9,2935.6,4.00471955]
[1731098214387,0.01,2935.7,2935.5,4.00471955]
[1731098214948,0.01,2935.3,2934.9,0.13215961]
[1731098215187,0.8411,2935.3,2934.8,4.00471955]
[1731098215399,0.8411,2935.3,2935.2,4.00471955]
[1731098215549,0.01,2935.3,2935.2,4.00471955]
[1731098218169,0.01,2935.3,2935.2,4.55471955]
[1731098219302,0.01,2935.3,2935.2,3.80347464]
[1731098220286,0.01,2935.5,2935.2,3.80347464]
[1731098220486,0.01,2935.6,2935.3,0.55]
[1731098220683,0.01,2935.6,2935.5,3.80347464]
[1731098221017,0.01,2935.1,2935.0,3.25347464]
[1731098221308,0.01,2935.1,2935.0,3.80347464]
[1731098223112,0.01,2935.1,2935.0,0.55]
[1731098223509,0.01,2934.7,2934.4,3.25347464]
[1731098224789,0.01,2934.9,2934.4,3.25347464]
[1731098224990,0.01,2934.9,2934.8,3.25347464]
[1731098225498,0.01,2934.9,2934.8,3.80347464]
[1731098225893,0.01,2935.2,2934.8,3.80347464]
[1731098226095,0.01,2935.2,2935.1,3.25347464]
[1731098226329,0.01,2935.2,2935.1,3.80347464]
[1731098226805,0.01,2935.4,2935.2,0.55]
[1731098226993,12.12188022,2935.8,2935.2,4.96685683]
[1731098227331,0.01,2935.8,2935.7,4.00240195]
[1731098227495,0.01,2935.8,2935.7,4.55240195]
[1731098229311,0.01,2935.8,2934.9,3.13235311]
[1731098229312,0.01,2935.3,2934.9,3.13235311]
[1731098229491,0.01,2935.3,2934.9,4.00240195]
[1731098229695,0.01,2935.3,2934.9,4.07053926]
[1731098230106,0.01,2935.3,2934.9,4.00240195]
[1731098230693,0.01,2935.1,2935.0,0.55]
[1731098231533,0.01,2934.9,2934.2,0.6599]
[1731098231730,0.01,2934.9,2934.7,4.00240195]
[1731098232724,0.8125,2934.8,2934.7,4.00240195]
[1731098232896,1.12951359,2934.8,2934.7,4.00240195]
[1731098233236,0.01,2934.9,2934.7,4.00240195]
[1731098233795,0.01,2934.9,2934.8,0.55]
[1731098233996,12.11188022,2935.3,2934.9,0.6599]
[1731098233997,0.01,2935.3,2934.9,0.6599]
[1731098234231,0.35302968,2935.4,2935.3,0.55]
[1731098234433,0.01,2935.9,2935.3,0.61812396]
[1731098234789,0.31704993,2935.8,2935.7,0.55]
[1731098234897,0.01,2935.8,2935.7,0.55]
[1731098235098,0.3270378,2935.8,2935.7,0.55]
[1731098237056,0.01,2935.8,2935.7,0.55]
[1731098237211,0.32718325,2935.8,2935.7,0.55]
[1731098238642,1.09488325,2935.8,2935.7,0.55]
[1731098238939,1.60238464,2935.8,2935.7,0.55]
[1731098240736,1.60275576,2935.8,2935.7,0.55]
[1731098243257,0.83505576,2935.8,2935.7,0.55]
[1731098243445,0.32732914,2935.8,2935.7,1.0052402]
[1731098243922,0.31737064,2935.8,2935.7,1.07336159]
[1731098244254,0.35281737,2936.1,2935.7,1.0052402]
[1731098244455,0.31735093,2936.0,2935.7,1.0052402]
[1731098244659,0.35281737,2936.1,2935.9,0.55]
[1731098244815,0.32734648,2936.0,2935.9,0.55]
[1731098245017,0.01,2935.8,2935.5,0.55]
[1731098245262,0.01,2935.6,2935.4,3.0]
[1731098245464,0.01,2935.6,2935.3,4.00240195]
[1731098245664,0.36297907,2935.6,2935.3,4.00240195]
[1731098245954,0.31742633,2935.5,2935.3,4.00240195]
[1731098246170,0.36297907,2935.6,2935.3,4.00240195]
[1731098246345,0.3174366,2935.5,2935.3,4.00240195]
[1731098246533,0.36297907,2935.6,2935.3,4.00240195]
[1731098246734,0.31743501,2935.5,2935.3,4.00240195]
[1731098247054,0.36297907,2935.6,2935.4,0.55]
[1731098247245,0.31743646,2935.5,2935.4,0.55]
[1731098248059,0.31743646,2935.5,2935.2,0.55]
[1731098248262,0.31743646,2935.4,2935.2,0.55]
[1731098248463,0.31748411,2935.3,2935.2,0.55]
[1731098250447,0.01,2935.2,2935.1,4.00240195]
[1731098250758,1.13019453,2935.2,2935.1,4.00240195]
[1731098251079,1.63819705,2935.2,2934.9,4.00240195]
[1731098251243,0.31749453,2935.1,2934.9,4.00240195]
[1731098251569,0.8127,2935.2,2934.9,4.00240195]
[1731098251749,0.31747942,2935.1,2934.9,4.55240195]
[1731098251948,0.01,2935.2,2935.0,0.55]
[1731098252252,0.31747335,2935.1,2935.0,0.55]
[1731098252853,0.01,2934.8,2934.3,0.6599]
[1731098253168,0.01,2934.5,2934.3,4.00240195]
[1731098253735,0.31749451,2934.4,2934.3,4.00240195]
[1731098253964,0.31749413,2934.4,2934.3,4.00240195]
[1731098254134,0.01,2934.5,2934.3,4.00240195]
[1731098254336,0.31750071,2934.4,2934.3,4.00240195]
[1731098254577,0.01,2934.5,2934.3,4.00240195]
[1731098254734,0.31743518,2934.4,2934.3,4.55240195]
[1731098255141,0.01,2934.5,2934.4,0.55]
[1731098255364,0.32743935,2934.5,2934.4,0.55]
[1731098255770,0.83534231,2934.5,2933.8,3.6599]
[1731098255969,0.01,2933.9,2933.7,4.00240195]
[1731098257290,0.01,2933.9,2933.8,0.55]
[1731098257439,0.32738877,2933.9,2933.8,0.55]
[1731098258854,0.31738877,2933.9,2933.8,0.55]
[1731098259055,0.5177145,2934.2,2933.8,0.55]
[1731098259260,0.01,2934.2,2934.1,4.55240195]
[1731098259492,0.32723997,2934.2,2934.1,4.55240195]
[1731098260183,12.11188022,2934.3,2934.1,4.55240195]
[1731098260492,12.11188022,2934.3,2934.2,0.55]
[1731098261131,0.01,2935.0,2934.2,3.55]
[1731098261415,0.31714388,2934.9,2934.8,0.55]
[1731098261589,0.01,2935.0,2934.8,0.55]
[1731098262126,0.35292427,2935.1,2934.8,0.55]
[1731098262284,0.35292427,2935.1,2935.0,0.55]
[1731098262483,0.7681,2935.6,2935.0,0.55]
[1731098262484,0.01,2935.6,2935.0,0.55]
[1731098262725,0.66992355,2935.5,2935.3,4.00240195]
[1731098262895,0.352854,2935.5,2935.4,0.55]
[1731098263229,0.01,2935.0,2934.9,4.00240195]
[1731098263382,0.01,2935.0,2934.9,4.55240195]
[1731098269223,12.11188022,2935.6,2935.0,0.55]
[1731098269224,0.01,2935.4,2935.0,0.55]
[1731098269396,0.31712215,2935.3,2935.0,0.55]
[1731098269597,0.01,2935.2,2935.0,0.55]
[1731098270998,0.01,2935.3,2935.0,0.55]
[1731098271220,0.50741117,2935.5,2935.0,0.55]
[1731098271221,0.01,2935.4,2935.0,0.61813999]
[1731098271400,0.01,2935.4,2935.3,4.55240195]
[1731098271586,0.32712524,2935.4,2935.3,4.55240195]
[1731098271789,0.01,2935.4,2935.3,4.55240195]
[1731098275306,0.35283126,2935.6,2935.4,0.55]
[1731098275541,0.34283126,2935.6,2935.5,0.55]
[1731098275821,0.01,2936.0,2935.6,1.2099]
[1731098276106,0.01,2936.0,2935.9,3.80301079]
[1731098276310,0.01,2936.0,2935.9,0.55]
[1731098276549,0.01,2936.0,2935.9,3.80301079]
[1731098277048,0.32702081,2936.0,2935.9,3.80301079]
[1731098277658,12.91828022,2936.5,2935.6,0.6599]
[1731098277659,0.01,2935.9,2935.7,4.55273703]
[1731098277857,0.01,2935.9,2935.7,5.08081277]
[1731098279108,0.01,2936.1,2935.7,5.08081277]
[1731098279960,12.91828022,2936.5,2935.9,0.55]
[1731098279961,0.01,2936.5,2935.9,0.55]
[1731098280111,0.31688795,2936.4,2936.3,4.55273703]
[1731098280316,0.01,2936.4,2936.3,4.55273703]
[1731098281147,0.01,2936.0,2935.8,0.55]
[1731098281822,0.8228,2936.2,2935.8,0.55]
[1731098281823,0.01,2936.2,2935.8,0.55]
[1731098282045,0.01,2936.0,2935.8,1.02514776]
[1731098283227,0.7666,2936.8,2935.9,0.6599]
[1731098283430,0.01,2936.6,2936.4,4.00273703]
[1731098285681,0.01,2936.6,2936.5,0.55]
[1731098285831,0.01,2937.0,2936.5,0.61810453]
[1731098286031,0.50660625,2937.1,2937.0,0.55]
[1731098286269,0.05108407,2937.4,2937.3,4.55273703]
[1731098286783,0.05108407,2937.4,2937.3,7.55273703]
[1731098287730,0.05108407,2937.4,2937.3,4.55273703]
[1731098288935,0.05108407,2937.4,2937.3,4.62082267]
[1731098289150,0.01,2937.7,2937.3,4.55273703]
[1731098289473,0.8066,2938.1,2937.4,4.08635786]
[1731098289474,0.8166,2938.1,2937.4,4.08635786]
[1731098289768,0.01,2938.1,2938.0,4.55273703]
[1731098290341,0.01,2938.6,2938.1,1.2099]
[1731098290533,0.01,2938.6,2938.5,4.55273703]
[1731098293949,0.7939,2938.6,2938.5,4.55273703]
[1731098295375,12.11188022,2939.0,2938.5,4.55273703]
[1731098295578,0.01,2938.6,2938.5,4.55273703]
[1731098295880,0.01,2938.6,2938.5,0.55]
[1731098296070,0.01,2938.6,2938.3,0.55]
[1731098296268,0.01,2938.7,2938.5,4.00273703]
[1731098296469,0.01,2938.7,2938.6,0.55]
[1731098299292,0.01,2938.9,2938.6,0.55]
[1731098299622,0.01,2939.1,2938.6,0.55]
[1731098299822,0.01,2939.1,2939.0,4.00273703]
[1731098299989,0.01,2939.1,2939.0,4.55273703]
[1731098302214,12.11188022,2939.6,2939.1,3.55]
[1731098302215,0.01,2939.6,2939.1,3.55]
[1731098302488,0.796,2940.1,2939.3,0.55]
[1731098302685,0.01,2939.9,2939.5,0.55]
[1731098302930,0.01,2939.9,2939.8,0.55]
[1731098303286,0.01,2939.7,2939.6,0.55]
[1731098303493,0.01,2939.7,2939.6,1.0052737]
[1731098304233,0.01,2939.7,2939.6,0.55]
[1731098304400,0.01,2939.7,2939.4,0.55]
[1731098305318,0.786,2940.1,2939.4,0.55]
[1731098305319,0.01,2940.0,2939.6,0.55]
[1731098305517,0.01,2940.0,2939.9,4.55273703]
[1731098306755,0.01,2939.6,2939.5,4.55273703]
[1731098306952,0.01,2939.6,2939.1,3.6599]
[1731098306953,0.01,2939.6,2939.1,4.13109128]
[1731098307110,0.01,2939.4,2939.1,4.41584616]
[1731098307305,0.7594,2939.9,2939.3,3.24387597]
[1731098307306,0.01,2939.7,2939.3,3.24387597]
[1731098307537,0.01,2939.7,2939.6,3.24387597]
[1731098308833,0.01,2939.7,2939.6,3.79387597]
[1731098309413,0.01,2939.7,2939.6,3.24387597]
[1731098309755,0.01,2939.4,2939.2,3.24387597]
[1731098310045,0.01,2939.4,2939.3,3.24387597]
[1731098310758,0.01,2939.4,2939.3,3.79387597]
[1731098311115,0.01,2939.6,2939.3,4.17326357]
[1731098311454,0.01,2939.4,2939.3,3.79387597]
[1731098312548,0.01,2939.4,2939.3,3.24387597]
[1731098313511,0.01,2939.1,2939.0,3.24387597]
[1731098313712,0.01,2939.1,2939.0,3.79387597]
[1731098314388,0.01,2939.1,2938.8,0.55]
[1731098315011,0.01,2938.9,2938.8,0.55]
[1731098315253,0.01,2938.9,2938.7,3.24387597]
[1731098315612,0.8331,2938.9,2938.4,3.24387597]
[1731098315810,0.01,2938.7,2938.4,3.63425357]
[1731098316013,0.01,2938.7,2938.6,3.24387597]
[1731098316434,0.01,2938.7,2938.6,3.79387597]
[1731098316639,0.01,2938.7,2938.6,0.55]
[1731098316839,0.01,2938.7,2938.4,0.55]
[1731098317032,0.01,2938.5,2938.4,0.55]
[1731098317508,0.25862107,2938.5,2938.4,0.55]
[1731098321227,0.8231,2938.9,2938.4,0.9293876]
[1731098321228,0.01,2938.8,2938.4,0.9293876]
[1731098321431,0.01,2938.8,2938.7,3.79387597]
[1731098321975,0.25914214,2938.8,2938.7,3.79387597]
[1731098323771,1.04254214,2938.8,2938.7,0.55]
[1731098323990,0.01,2938.2,2938.1,3.24387597]
[1731098324283,0.01,2938.2,2937.8,3.24387597]
[1731098324579,0.25911237,2938.2,2937.8,3.56826357]
[1731098324741,0.01,2938.2,2937.8,3.24387597]
[1731098324941,0.24910264,2938.1,2937.8,3.24387597]
[1731098325264,0.01,2938.2,2937.8,3.24387597]
[1731098325450,0.24909012,2938.1,2937.8,3.24387597]
[1731098325651,0.01,2938.2,2937.8,3.24387597]
[1731098325972,0.24916132,2938.1,2937.8,3.24387597]
[1731098327181,0.01,2938.0,2937.9,0.55]
[1731098331284,0.32638817,2938.0,2937.9,0.55]
[1731098332253,0.31638817,2938.0,2937.9,0.55]
[1731098332461,12.11188022,2938.6,2937.9,4.5892876]
[1731098332659,0.31641473,2938.5,2938.4,3.79387597]
[1731098335681,0.31641473,2938.5,2938.4,6.79387597]
[1731098337362,0.01,2938.8,2938.4,3.79387597]
[1731098337559,0.01,2938.8,2938.5,0.9293876]
[1731098337864,0.31658069,2938.7,2938.5,3.9293876]
[1731098338186,0.01,2938.8,2938.5,3.9293876]
[1731098338389,0.31657666,2938.7,2938.5,3.9293876]
[1731098338696,0.01,2938.8,2938.5,3.9293876]
[1731098338885,0.31657876,2938.7,2938.6,0.79655978]
[1731098339403,0.31657876,2938.7,2938.6,1.34655978]
[1731098339562,0.01,2938.8,2938.7,0.55]
[1731098339964,0.32657033,2938.8,2938.7,0.55]
[1731098340904,0.32657033,2938.8,2938.6,0.55]